bitfinex-derivatives/quotes_ETHF0:USTF0_20250810
["timestamp","ask_amount","ask_price","bid_price","bid_amount"]
[1754801190319,0.5427,4261.6,4261.2,0.46927]
[1754801190519,1.1623,4261.3,4261.2,1.1548]
[1754801190723,1.5568,4261.3,4261.2,23.1788]
[1754801193323,1.5568,4261.3,4261.2,22.4168]
[1754801193727,1.5568,4261.3,4261.2,22.024]
[1754801194326,1.5568,4261.3,4261.2,0.5]
[1754801198125,1.1623,4261.3,4261.2,1.5249]
[1754801198328,1.1623,4261.3,4261.2,1.6514]
[1754801198329,1.5461,4261.3,4261.2,1.6514]
[1754801200234,1.1623,4261.3,4261.2,1.6514]
[1754801202534,1.1623,4261.3,4261.2,1.8226233]
[1754801202832,1.5461,4261.3,4261.2,1.8226233]
[1754801203734,1.5461,4261.3,4261.2,1.82258897]
[1754801205334,1.5461,4261.3,4261.2,1.82257072]
[1754801206430,0.27,4261.3,4261.2,1.82257072]
[1754801206628,0.5238,4261.3,4261.2,1.98117072]
[1754801206830,0.6989,4261.3,4261.2,1.98117072]
[1754801207035,0.8695,4261.3,4261.2,1.98117072]
[1754801207337,1.1462,4261.3,4261.2,1.98117072]
[1754801207533,1.53,4261.3,4261.2,1.98117072]
[1754801208829,0.27,4261.3,4261.2,1.98117072]
[1754801209137,0.8695,4261.3,4261.2,1.98117072]
[1754801209436,1.1462,4261.3,4261.2,1.98117072]
[1754801209632,1.53,4261.3,4261.2,0.32977072]
[1754801209836,1.53,4261.3,4261.1,0.65247259]
[1754801210036,1.0062,4261.3,4261.1,0.65247259]
[1754801210237,0.5201,4261.2,4261.1,0.65247259]
[1754801210933,0.5,4261.3,4261.2,0.96927]
[1754801211134,0.3838,4262.0,4261.2,0.96927]
[1754801211135,3.2078,4263.3,4261.2,9.7078]
[1754801211332,1.17259,4263.4,4261.2,9.7078]
[1754801211333,1.5263,4261.9,4261.8,3.2078]
[1754801211533,1.5263,4261.9,4261.8,21.488]
[1754801211730,1.5263,4261.9,4261.8,24.6978]
[1754801211935,1.1224,4261.9,4261.8,21.492]
[1754801212540,2.0263,4261.9,4261.8,21.492]
[1754801213844,1.5263,4261.3,4261.2,0.5]
[1754801214343,1.5263,4261.3,4261.2,21.991]
[1754801215944,2.0263,4261.3,4261.2,0.5]
[1754801216242,2.0263,4261.3,4261.2,21.986]
[1754801217533,2.0263,4261.3,4261.2,23.23816815]
[1754801217938,2.0263,4261.3,4261.2,21.986]
[1754801218546,2.0263,4261.3,4261.2,23.23816815]
[1754801218839,2.0263,4261.3,4261.2,21.986]
[1754801219347,2.0263,4261.3,4260.8,1.25216815]
[1754801219348,1.5263,4260.9,4260.8,1.25216815]
[1754801219640,1.5263,4260.9,4260.8,21.477]
[1754801219847,1.5263,4260.9,4260.8,21.7346]
[1754801220238,1.5263,4260.9,4260.8,22.0045]
[1754801220543,0.2663,4260.9,4260.8,23.25666815]
[1754801220745,1.1425,4260.9,4260.8,23.25705274]
[1754801220944,1.5263,4260.9,4260.8,23.25705274]
[1754801221742,2.0263,4260.9,4260.8,0.16390917]
[1754801221940,2.0263,4260.9,4260.8,21.68590917]
[1754801226749,2.5263,4260.9,4260.8,22.022]
[1754801227949,2.5263,4260.9,4260.8,0.5]
[1754801228552,2.5263,4260.9,4260.8,0.7576]
[1754801228845,2.5263,4260.9,4260.8,22.5284]
[1754801229044,0.5,4260.9,4260.8,22.5284]
[1754801229240,0.5,4260.9,4260.8,23.94461587]
[1754801229241,0.7732,4260.9,4260.8,23.94461587]
[1754801229646,0.7732,4260.9,4260.8,22.69206313]
[1754801230049,0.5,4260.9,4260.8,22.69206313]
[1754801230251,0.2424,4260.9,4260.8,22.69206313]
[1754801230546,0.2424,4260.9,4260.8,30.36227974]
[1754801230947,0.2424,4260.9,4260.8,28.69206313]
[1754801231248,1.8773,4261.3,4261.2,0.46927]
[1754801231451,0.2732,4262.8,4261.2,24.89337357]
[1754801231750,1.5568,4262.5,4262.4,3.2078]
[1754801231947,1.5568,4262.5,4262.4,24.7428]
[1754801232146,2.0568,4262.5,4262.4,24.7428]
[1754801232349,2.0568,4262.5,4262.4,24.7418]
[1754801232843,2.0568,4262.5,4262.4,21.534]
[1754801233040,1.1248,4262.5,4262.0,4.92608879]
[1754801233241,0.6248,4262.2,4262.1,21.70243589]
[1754801233440,1.5568,4262.2,4262.1,0.16340081]
[1754801233651,1.5568,4262.2,4262.1,21.70040081]
[1754801233839,1.5568,4262.2,4262.1,0.16340081]
[1754801234040,1.5568,4262.2,4262.1,21.69940081]
[1754801234244,2.0568,4262.2,4262.1,21.536]
[1754801234647,1.5568,4261.6,4261.5,4.45690879]
[1754801234847,1.5568,4261.6,4261.5,26.15831173]
[1754801236953,1.5568,4261.6,4261.5,24.90920294]
[1754801237859,1.5568,4261.6,4261.5,24.90909951]
[1754801239655,1.1619,4261.6,4261.5,24.90909951]
[1754801239952,0.2732,4261.9,4261.8,0.4692]
[1754801240148,3.2078,4262.8,4261.8,21.522]
[1754801240353,0.4405,4262.0,4261.9,21.565]
[1754801240552,1.5568,4262.0,4261.9,0.16322422]
[1754801240852,0.6248,4261.1,4261.0,21.8548]
[1754801241053,1.5568,4261.1,4261.0,21.8573]
[1754801241254,1.5568,4261.1,4261.0,22.2685]
[1754801241956,0.2732,4261.1,4261.0,22.2685]
[1754801242551,0.2732,4261.1,4261.0,21.2685]
[1754801243151,0.2732,4261.1,4261.0,22.51586602]
[1754801243952,0.7188,4261.9,4261.8,1.1497]
[1754801244260,0.7188,4261.9,4261.8,25.9605]
[1754801244452,3.2078,4262.6,4262.2,0.46916]
[1754801244651,0.6248,4262.4,4262.3,22.282]
[1754801245052,1.5568,4262.4,4262.3,22.282]
[1754801245768,2.0568,4262.4,4262.3,21.608]
[1754801246157,2.0568,4262.4,4262.3,25.4963]
[1754801247859,1.1619,4262.4,4262.3,25.4963]
[1754801248360,0.7188,4262.4,4262.3,25.4963]
[1754801248561,0.2732,4262.4,4262.3,25.4963]
[1754801250062,2.0583,4262.9,4262.8,0.4334]
[1754801250374,0.2639,4263.6,4262.8,24.8148]
[1754801250663,0.9031,4262.9,4262.8,26.0156]
[1754801250866,0.2732,4262.9,4262.8,26.0156]
[1754801251068,0.7188,4262.9,4262.8,26.0156]
[1754801251865,0.5371,4262.9,4262.8,26.0156]
[1754801252064,1.1619,4262.9,4262.8,26.0156]
[1754801252265,0.2732,4262.9,4262.8,26.0156]
[1754801253575,0.2732,4262.9,4262.8,26.17057971]
[1754801253874,0.2732,4262.9,4262.8,26.17057976]
[1754801254074,0.7188,4262.9,4262.8,26.17057976]
[1754801254276,2.0568,4262.9,4262.8,24.8098]
[1754801255065,2.0568,4262.9,4262.8,21.602]
[1754801255470,2.0568,4262.9,4262.3,3.2078]
[1754801255471,0.6652,4262.4,4262.3,3.2078]
[1754801255671,0.6652,4262.4,4262.3,24.8108]
[1754801255672,1.6265,4262.4,4262.3,24.8108]
[1754801255872,1.6265,4262.4,4262.3,25.2116]
[1754801256075,1.6265,4262.4,4262.3,26.89577586]
[1754801256266,1.6265,4262.4,4262.3,26.91557586]
[1754801256472,1.6265,4262.4,4262.3,25.66849536]
[1754801256675,1.6265,4262.4,4262.3,26.91322106]
[1754801257176,1.6265,4262.4,4262.3,25.66849536]
[1754801259772,0.2809,4262.4,4262.3,25.66849536]
[1754801259977,1.6265,4262.4,4262.3,4.04569536]
[1754801260169,2.1265,4262.4,4262.3,25.20729536]
[1754801261374,2.1265,4262.4,4262.3,25.65949536]
[1754801261573,2.1265,4262.4,4262.3,25.63969536]
[1754801262076,1.6265,4262.4,4262.3,25.63969536]
[1754801262870,1.7377,4262.4,4262.3,25.65949536]
[1754801263477,2.1265,4262.4,4262.3,25.65949536]
[1754801264380,1.7377,4262.4,4262.3,25.65949536]
[1754801264972,1.2377,4262.4,4262.3,25.65949536]
[1754801265172,0.9636,4262.4,4262.3,25.65949536]
[1754801265374,0.2809,4263.1,4263.0,0.2504]
[1754801265674,0.2809,4263.1,4263.0,25.0648]
[1754801266073,0.7693,4263.1,4263.0,25.4854]
[1754801266273,1.6265,4263.1,4263.0,26.88603955]
[1754801266674,1.2377,4263.1,4263.0,26.88603955]
[1754801266874,1.6265,4263.1,4263.0,26.88603955]
[1754801267274,1.6265,4263.1,4263.0,25.4746]
[1754801268379,2.1265,4263.1,4263.0,25.4746]
[1754801268582,0.7693,4263.1,4263.0,25.4944]
[1754801268780,1.2377,4263.1,4263.0,25.4944]
[1754801269082,2.618,4264.9,4263.0,25.2124]
[1754801269283,0.9613,4264.2,4263.1,0.57568946]
[1754801269580,1.6265,4263.8,4263.7,1.15179]
[1754801269776,1.6265,4263.8,4263.7,22.2628]
[1754801270276,2.1265,4263.8,4263.7,22.2628]
[1754801270479,0.2809,4263.9,4263.8,0.46899]
[1754801270780,1.2377,4263.9,4263.8,22.74959]
[1754801271175,1.8024,4264.0,4263.9,0.7026]
[1754801271378,2.7592,4264.0,4263.9,0.85764149]
[1754801271676,3.648,4264.0,4263.9,0.83784149]
[1754801271881,3.9289,4264.0,4263.8,21.578]
[1754801272077,0.6652,4263.8,4263.7,0.469]
[1754801272377,1.6265,4263.8,4263.7,0.80624299]
[1754801272679,2.1265,4263.8,4263.7,22.49364299]
[1754801274075,0.2809,4263.8,4263.7,22.49364299]
[1754801274277,1.2377,4263.8,4263.7,22.49364299]
[1754801274478,1.6265,4263.8,4263.7,22.49364299]
[1754801276380,1.6265,4263.8,4263.7,22.49345743]
[1754801276582,2.8564,4264.0,4263.9,0.282]
[1754801276781,3.3564,4264.0,4263.9,22.50645743]
[1754801276981,1.554,4264.0,4263.9,22.50645743]
[1754801277183,2.1265,4264.0,4263.9,22.50645743]
[1754801277685,2.1265,4264.0,4263.9,22.48665743]
[1754801277890,2.1265,4264.0,4263.9,0.15485743]
[1754801278079,2.1265,4264.0,4263.9,21.80185743]
[1754801278378,2.1265,4264.0,4263.9,23.04583099]
[1754801278584,2.1265,4264.0,4263.9,1.39883099]
[1754801278772,2.1265,4264.0,4263.9,22.88297356]
[1754801278979,2.1265,4264.0,4263.9,21.639]
[1754801279677,2.1265,4264.0,4263.7,1.24397356]
[1754801279978,1.6265,4263.9,4263.8,21.635]
[1754801280578,0.6652,4263.9,4263.6,1.24397356]
[1754801280778,1.6265,4263.7,4263.6,1.71298356]
[1754801280974,1.876,4264.2,4263.9,0.46897]
[1754801281282,1.6265,4264.1,4264.0,25.5212]
[1754801281479,1.2377,4264.1,4264.0,25.5212]
[1754801281882,1.6265,4264.1,4264.0,25.5212]
[1754801282578,1.6265,4264.1,4264.0,25.5096]
[1754801282778,2.1265,4264.1,4264.0,24.8448]
[1754801283177,2.1265,4264.1,4264.0,24.8428]
[1754801283989,2.1265,4264.1,4264.0,25.494]
[1754801284191,0.2809,4264.1,4264.0,25.5242]
[1754801284686,1.6265,4264.1,4264.0,25.5086]
[1754801284886,1.6265,4264.1,4264.0,25.5202]
[1754801285486,1.6265,4264.1,4264.0,26.0202]
[1754801286092,1.62999361,4264.1,4264.0,26.0202]
[1754801287589,0.72529361,4264.1,4264.0,26.0202]
[1754801287888,1.18299361,4264.1,4264.0,26.0202]
[1754801288090,1.56519361,4264.1,4264.0,26.0202]
[1754801288388,1.18299361,4264.1,4264.0,26.0202]
[1754801288994,1.56519361,4264.1,4264.0,26.0202]
[1754801289191,1.56519361,4264.1,4264.0,25.3388]
[1754801289389,2.06519361,4264.1,4264.0,22.131]
[1754801289893,2.06519361,4264.1,4264.0,25.9878]
[1754801290095,2.06519361,4264.1,4264.0,26.0032]
[1754801290296,2.06519361,4264.1,4264.0,26.0128]
[1754801292197,1.68299361,4264.1,4264.0,26.0128]
[1754801292593,0.45949361,4264.1,4264.0,26.16771752]
[1754801292896,0.00349361,4264.1,4264.0,27.41169108]
[1754801293095,0.28599361,4264.1,4264.0,26.16771752]
[1754801293292,0.00349361,4264.1,4264.0,26.16771752]
[1754801294990,0.00349361,4264.1,4264.0,27.82647994]
[1754801295396,0.28599361,4264.1,4264.0,27.82647994]
[1754801296096,0.00349361,4264.1,4264.0,27.82647994]
[1754801296297,0.00349361,4264.1,4264.0,26.16771752]
[1754801296691,0.28599361,4264.1,4264.0,26.16771752]
[1754801298400,3.61e-06,4264.1,4264.0,26.16771752]
[1754801299098,1.1811,4265.1,4265.0,0.48425]
[1754801299297,1.5633,4265.1,4265.0,22.23099761]
[1754801299694,0.0633,4265.1,4264.9,3.2078]
[1754801299896,0.0375,4264.3,4264.2,3.2078]
[1754801300097,0.0375,4264.3,4264.2,24.8248]
[1754801300299,0.1008,4264.3,4264.2,25.1037]
[1754801300605,0.1008,4264.3,4264.2,3.4867]
[1754801300903,1.8758,4264.7,4264.3,0.5647]
[1754801301100,1.8758,4264.7,4264.6,0.6234]
[1754801301297,1.9766,4264.7,4264.6,21.9049]
[1754801301492,2.44549,4264.7,4264.3,0.2789]
[1754801301692,2.44549,4264.7,4264.4,21.626]
[1754801302004,0.0609,4264.5,4264.4,21.9049]
[1754801302405,0.0609,4264.5,4264.4,22.1907]
[1754801302699,0.0609,4264.5,4264.4,21.9049]
[1754801302899,0.1008,4264.5,4264.4,21.9049]
[1754801303104,0.1242,4264.5,4264.4,0.5647]
[1754801303305,0.0234,4265.1,4264.5,0.5647]
[1754801303504,0.0609,4265.1,4265.0,0.6234]
[1754801303705,0.1242,4265.1,4265.0,23.2205]
[1754801303905,0.0609,4265.1,4265.0,23.2205]
[1754801304399,0.0609,4265.2,4265.1,0.46884]
[1754801304603,0.0609,4265.2,4265.1,0.2789]
[1754801304804,0.0609,4265.2,4265.1,1.0124]
[1754801305203,0.0375,4265.2,4265.1,1.5795]
[1754801305704,1.6509,4265.5,4265.2,0.46883]
[1754801305899,1.6884,4265.5,4265.4,1.5795]
[1754801306092,0.1008,4265.5,4265.4,0.469]
[1754801306299,0.1008,4265.5,4265.4,0.7548]
[1754801306606,0.1242,4265.5,4265.4,0.7548]
[1754801306800,0.1242,4265.5,4265.4,1.1881]
[1754801307306,0.1242,4265.5,4265.4,1.5795]
[1754801309201,0.0234,4265.4,4265.3,0.2789]
[1754801309402,0.0609,4265.4,4265.3,21.629]
[1754801309603,0.0609,4265.4,4265.3,21.9079]
[1754801309906,0.0609,4265.4,4265.3,22.1937]
[1754801310106,0.0609,4265.4,4265.3,21.9079]
[1754801310907,0.0609,4265.7,4265.6,0.6234]
[1754801311100,0.0609,4265.7,4265.6,23.2025]
[1754801311299,0.0609,4265.7,4265.6,22.8111]
[1754801311607,0.0609,4265.7,4265.6,22.092]
[1754801311805,0.1242,4265.7,4265.6,21.623]
[1754801312301,0.0609,4265.4,4265.3,0.2789]
[1754801312499,0.0609,4265.4,4265.3,21.8969]
[1754801313100,0.0609,4265.4,4265.3,0.2789]
[1754801313296,0.0609,4265.4,4265.3,21.8989]
[1754801313502,0.1242,4265.4,4265.3,21.62]
[1754801314906,0.0375,4264.9,4264.8,4.117]
[1754801315105,0.0952,4264.9,4264.8,25.737]
[1754801315307,0.15,4264.9,4264.8,4.5148]
[1754801315507,0.15,4264.9,4264.8,26.4243]
[1754801316311,0.2133,4264.9,4264.8,3.5053]
[1754801316508,0.2476,4264.9,4264.8,21.9115]
[1754801316811,0.0343,4264.9,4264.8,22.27800656]
[1754801317714,0.52969328,4265.0,4264.8,22.27800656]
[1754801317913,0.52969328,4265.0,4264.9,0.66400656]
[1754801320110,0.52969328,4265.0,4264.9,0.96770656]
[1754801321615,0.52969328,4265.0,4264.9,1.16780656]
[1754801322213,0.46886,4265.0,4264.9,1.64480656]
[1754801322414,0.46886,4265.0,4264.9,2.04260656]
[1754801323709,0.46886,4265.0,4264.9,2.51147656]
[1754801323914,3.67663,4265.2,4264.9,2.04260656]
[1754801324111,3.73746328,4265.2,4265.1,0.6012]
[1754801324310,3.73746328,4265.2,4265.1,22.75380656]
[1754801324515,3.73746328,4265.2,4265.1,23.62860656]
[1754801325016,3.26863328,4265.2,4265.1,23.62860656]
[1754801326108,3.2078,4265.2,4265.1,24.09744656]
[1754801326510,4.9851,4265.7,4265.6,1.14589]
[1754801326819,0.6578,4265.9,4265.8,0.74206]
[1754801327017,0.6578,4265.9,4265.8,1.04360656]
[1754801327211,0.71863328,4265.9,4265.8,1.04360656]
[1754801327530,0.71863328,4265.9,4265.8,2.04260656]
[1754801328412,0.06083328,4265.9,4265.8,2.04260656]
[1754801328612,0.71863328,4265.9,4265.8,2.04260656]
[1754801330411,0.71863328,4265.9,4265.8,2.54260656]
[1754801331911,0.4052,4267.0,4266.3,0.9011]
[1754801332113,1.10599,4266.5,4266.4,0.36650656]
[1754801332412,0.66594,4266.0,4265.9,3.2078]
[1754801332614,2.10854,4266.0,4265.9,3.2078]
[1754801333005,2.10854,4266.0,4265.9,3.7054]
[1754801333208,1.6398,4265.9,4265.8,0.5]
[1754801333405,2.14910115,4265.9,4265.8,0.5]
[1754801333614,5.14704115,4265.9,4265.8,0.5]
[1754801335316,11.14704115,4265.9,4265.8,0.5]
[1754801335516,4.84504115,4265.9,4265.8,0.9976]
[1754801335816,5.14704115,4265.9,4265.8,0.5]
[1754801337415,3.50724115,4265.9,4265.8,0.5]
[1754801337617,1.6398,4265.9,4265.8,0.5]
[1754801337916,4.72684996,4265.9,4265.8,0.5]
[1754801338119,5.23615111,4265.9,4265.8,0.5]
[1754801339120,5.23615111,4265.9,4265.8,2.1761]
[1754801339121,1.55180115,4265.9,4265.8,2.1761]
[1754801339321,1.0425,4265.9,4265.8,2.1761]
[1754801339820,1.3378,4265.9,4265.8,2.1761]
[1754801340524,4.75640421,4265.9,4265.8,0.5]
[1754801340723,5.26570536,4265.9,4265.8,0.5]
[1754801341015,5.26570536,4265.9,4265.8,1.4746]
[1754801341220,4.96370536,4265.9,4265.8,2.1761]
[1754801341422,4.66840536,4265.9,4265.8,2.1761]
[1754801341618,3.62590536,4265.9,4265.8,2.1761]
[1754801341814,0.72134,4266.0,4265.9,1.6761]
[1754801342118,1.80654,4266.0,4265.9,1.6761]
[1754801343616,1.3378,4266.0,4265.9,1.6761]
[1754801343815,0.6373,4266.0,4265.9,1.6761]
[1754801344019,1.6845,4266.3,4266.2,1.2783]
[1754801344215,0.4401,4266.3,4266.2,1.6761]
[1754801344423,1.3378,4266.3,4266.2,2.02263606]
[1754801344721,2.31576888,4266.7,4266.6,0.6771]
[1754801344924,2.31576888,4266.7,4266.6,2.02263606]
[1754801345117,5.20572666,4266.7,4266.6,0.34653606]
[1754801345319,5.71486262,4266.7,4266.6,0.34653606]
[1754801345515,0.46879,4265.6,4265.5,0.3112]
[1754801345719,1.46289,4265.6,4265.5,0.5142]
[1754801345922,1.46289,4265.6,4265.5,0.9681]
[1754801346123,1.46289,4265.6,4265.5,1.6318]
[1754801346424,2.14699,4265.6,4265.5,1.6318]
[1754801346624,1.84059,4265.6,4265.5,1.6318]
[1754801347221,0.46885,4265.0,4264.9,0.6569]
[1754801347423,1.84065,4265.0,4264.9,1.3206]
[1754801347924,1.84065,4265.0,4264.9,1.6318]
[1754801349319,0.67605,4265.0,4264.9,1.6318]
[1754801349725,0.46885,4265.0,4264.9,1.6318]
[1754801350819,1.84065,4265.0,4264.9,23.3248]
[1754801351419,0.95355,4265.0,4264.9,23.3248]
[1754801351622,0.46885,4265.1,4264.9,22.3499]
[1754801351822,0.46885,4265.1,4265.0,1.6318]
[1754801352221,0.46884,4265.2,4265.0,0.6569]
[1754801352421,0.46884,4265.2,4264.9,22.16186]
[1754801352422,0.46884,4265.2,4265.1,1.6318]
[1754801352615,4.05468161,4265.8,4265.1,0.6569]
[1754801352822,5.21115161,4265.8,4265.7,0.6569]
[1754801353024,5.21115161,4265.8,4265.7,1.6318]
[1754801353624,1.6782,4265.4,4265.3,1.6318]
[1754801353931,1.6782,4265.4,4265.3,1.3497]
[1754801354227,1.6782,4265.4,4265.3,1.6318]
[1754801354228,1.84061,4265.4,4265.3,1.6318]
[1754801354421,1.15651,4265.4,4265.3,1.6318]
[1754801354620,0.67601,4265.4,4265.3,1.6318]
[1754801355027,0.4688,4265.5,4265.3,1.6318]
[1754801355225,0.4688,4265.5,4265.4,1.6318]
[1754801355420,0.46879,4265.6,4265.4,0.6569]
[1754801355626,0.46879,4265.6,4265.5,1.6318]
[1754801356329,1.8754,4265.7,4265.5,1.6318]
[1754801356625,1.8754,4265.7,4265.4,0.46881]
[1754801356626,2.8663,4265.7,4265.6,1.6318]
[1754801356831,3.2472,4265.7,4265.6,1.6318]
[1754801357329,1.6782,4265.7,4265.6,1.6318]
[1754801357534,0.46877,4265.8,4265.6,0.6569]
[1754801357727,0.46877,4265.8,4265.7,1.6318]
[1754801359133,0.46877,4265.8,4265.7,2.1318]
[1754801359721,0.74627,4265.8,4265.7,2.1318]
[1754801360023,2.14697,4265.8,4265.7,1.4681]
[1754801360428,2.14697,4265.8,4265.7,1.6318]
[1754801360924,0.46877,4265.8,4265.7,1.6318]
[1754801361124,2.34395,4266.0,4265.7,1.12567]
[1754801361326,3.247,4266.0,4265.9,1.6318]
[1754801361731,1.3718,4266.0,4265.9,1.6318]
[1754801362727,0.2072,4265.8,4265.7,0.5]
[1754801362932,1.3718,4265.8,4265.7,1.6318]
[1754801363429,1.6782,4265.8,4265.7,1.6318]
[1754801363635,1.6782,4265.8,4265.7,0.9681]
[1754801364138,1.6782,4265.8,4265.7,1.4681]
[1754801364337,1.6782,4265.8,4265.7,0.5]
[1754801365134,1.6782,4265.8,4265.7,0.8112]
[1754801365330,1.6782,4265.8,4265.7,0.3112]
[1754801366036,1.17195,4265.7,4264.9,0.2821]
[1754801366242,1.45968,4265.7,4265.6,1.0385]
[1754801366442,1.45968,4265.7,4265.6,1.3206]
[1754801366833,1.76608,4265.7,4265.6,1.3206]
[1754801367033,2.11018,4265.7,4265.6,1.3206]
[1754801367532,1.48858,4265.7,4265.6,1.3206]
[1754801367732,0.46878,4265.7,4265.6,1.3206]
[1754801367937,0.46878,4265.7,4265.6,1.6318]
[1754801368138,0.67178,4265.7,4265.6,1.6318]
[1754801368543,0.46876,4265.9,4265.8,1.6318]
[1754801369038,1.48856,4265.9,4265.8,1.6318]
[1754801369236,1.83266,4265.9,4265.8,1.6318]
[1754801369438,1.18536,4265.9,4265.8,1.6318]
[1754801369639,0.203,4265.9,4265.8,1.6318]
[1754801370241,2.34395,4266.0,4265.8,1.6318]
[1754801370743,2.34395,4266.0,4265.9,1.6318]
[1754801371242,0.46875,4266.0,4265.9,1.6318]
[1754801371438,3.67654,4266.1,4265.9,1.6318]
[1754801371639,3.67654,4266.1,4266.0,1.6318]
[1754801371948,3.87954,4266.1,4266.0,1.6318]
[1754801372140,4.18594,4266.1,4266.0,1.6318]
[1754801372444,4.69634,4266.1,4266.0,1.6318]
[1754801372839,5.31794,4266.1,4266.0,1.6318]
[1754801373540,2.11018,4265.8,4265.7,1.6318]
[1754801374037,2.11018,4265.8,4265.7,2.1318]
[1754801374240,1.6414,4265.8,4265.7,2.1318]
[1754801375149,1.0198,4265.8,4265.7,2.1318]
[1754801375343,1.0198,4265.8,4265.7,1.6318]
[1754801375645,0.46875,4266.0,4265.9,0.6402]
[1754801375847,0.67175,4266.0,4265.9,1.6033]
[1754801376240,1.18165,4266.0,4265.9,1.6033]
[1754801376443,1.47245,4266.0,4265.9,1.6033]
[1754801377044,0.4688,4265.5,4265.3,3.2078]
[1754801377242,0.203,4265.0,4264.9,1.6033]
[1754801377654,1.0037,4265.0,4264.9,1.6033]
[1754801377945,1.6117,4265.0,4264.9,1.6033]
[1754801378340,1.18182,4264.4,4264.3,0.6402]
[1754801378543,2.08062,4264.4,4264.3,1.75302038]
[1754801378945,2.08062,4264.4,4264.3,1.6033]
[1754801379553,2.08062,4264.4,4264.3,1.3231]
[1754801380362,2.08062,4264.4,4264.3,1.6033]
[1754801381060,2.08062,4264.4,4264.3,0.6402]
[1754801382151,0.46903,4263.4,4263.2,0.6829]
[1754801382357,2.08073,4263.4,4263.3,1.0389]
[1754801382761,2.08073,4263.4,4263.3,0.6402]
[1754801383156,2.08073,4263.4,4263.3,0.2576]
[1754801383462,1.14213,4263.4,4263.1,3.2078]
[1754801383658,0.265,4263.3,4263.2,0.4457]
[1754801383955,0.6731,4263.3,4263.2,1.3231]
[1754801384161,0.6731,4263.3,4263.2,1.6033]
[1754801384362,1.6117,4263.3,4263.2,1.6033]
[1754801385765,1.6117,4263.3,4263.1,3.2078]
[1754801385959,1.6117,4263.2,4263.1,4.5309]
[1754801386867,1.6117,4263.2,4263.1,4.2467]
[1754801387963,1.6117,4263.2,4263.1,3.848]
[1754801388160,1.6117,4263.2,4263.1,3.2078]
[1754801388560,1.6117,4263.2,4263.1,3.6535]
[1754801389367,1.6117,4263.2,4263.1,0.2576]
[1754801389767,2.0808,4262.8,4262.7,22.7289]
[1754801390162,2.0808,4262.8,4262.7,1.0389]
[1754801390665,2.0808,4262.8,4262.7,1.3231]
[1754801391462,2.0808,4262.8,4262.7,1.6033]
[1754801392058,0.4691,4262.8,4262.7,1.6033]
[1754801392266,0.46918,4262.1,4261.0,0.2802]
[1754801392458,3.5508,4261.7,4261.1,0.6402]
[1754801392664,3.2078,4261.7,4261.6,1.6033]
[1754801392966,0.46922,4261.8,4261.6,0.6402]
[1754801393271,0.46922,4261.8,4261.7,1.6033]
[1754801393564,1.28022,4261.8,4261.7,1.6033]
[1754801394168,0.3048,4262.1,4261.3,0.6402]
[1754801394365,4.3537646,4261.8,4261.7,1.6033]
[1754801394566,1.28021,4261.8,4261.7,1.6033]
[1754801394867,4.34779639,4261.8,4261.7,1.6033]
[1754801395172,4.65259639,4261.8,4261.7,1.2046]
[1754801395371,4.65259639,4261.8,4261.7,0.7589]
[1754801395571,0.93725,4261.4,4261.3,1.0389]
[1754801395771,0.46924,4261.5,4261.3,0.6402]
[1754801395972,3.67703,4261.6,4261.4,1.0389]
[1754801396169,3.67703,4261.6,4261.4,0.6402]
[1754801396371,4.14497,4262.1,4262.0,0.6402]
[1754801396573,4.48797,4262.1,4262.0,1.6033]
[1754801398070,4.14497,4262.1,4262.0,1.6033]
[1754801398275,3.2078,4262.1,4262.0,1.6033]
[1754801398470,3.2078,4262.6,4262.5,1.6033]
[1754801399170,1.8766,4262.9,4262.8,0.6402]
[1754801399376,1.8766,4262.9,4262.8,1.6033]
[1754801399674,1.1506,4262.9,4262.8,1.6033]
[1754801399877,3.2078,4263.2,4263.1,0.6402]
[1754801400174,3.2078,4263.2,4263.1,2.1033]
[1754801400972,4.583,4263.2,4263.1,1.7046]
[1754801401170,4.8878,4263.2,4263.1,0.7802]
[1754801401772,4.8878,4263.2,4263.1,0.5]
[1754801402470,4.8878,4263.2,4263.1,0.7802]
[1754801404178,4.8878,4263.2,4263.1,0.5]
[1754801404476,7.97513355,4263.2,4263.1,0.5]
[1754801405973,0.6678,4262.3,4262.2,0.783]
[1754801406168,0.67706,4260.5,4260.4,0.408]
[1754801406377,1.19366,4260.5,4260.4,1.6776]
[1754801406578,3.07213748,4260.5,4260.4,1.6776]
[1754801406774,3.67715,4260.6,4260.5,1.0155]
[1754801407080,4.09245,4260.6,4260.5,1.6776]
[1754801407275,4.40145,4260.6,4260.5,1.6776]
[1754801407476,4.69585,4260.6,4260.5,0.9592]
[1754801407676,4.2265,4260.6,4260.5,1.6776]
[1754801408580,3.9321,4260.6,4260.5,1.6776]
[1754801409076,0.5166,4260.3,4260.2,1.3805]
[1754801409278,1.0187,4260.3,4260.2,1.3805]
[1754801409475,0.7097,4260.3,4259.6,0.7184]
[1754801409673,0.4153,4259.7,4259.6,1.84995]
[1754801409875,0.7243,4259.7,4259.6,1.84995]
[1754801410075,0.4153,4259.7,4259.6,1.84995]
[1754801410277,0.4153,4259.7,4259.6,2.14705]
[1754801410775,3.9321,4260.0,4259.9,2.14702]
[1754801411282,3.9321,4260.0,4259.9,1.6776]
[1754801411670,4.2265,4260.0,4259.9,0.5512]
[1754801411874,0.7243,4259.6,4259.5,1.3805]
[1754801412483,0.4153,4259.6,4259.5,1.6776]
[1754801412684,3.9321,4260.0,4259.9,0.6621]
[1754801412886,3.9321,4260.0,4259.9,1.6776]